bitfinex/quotes_ETHUSD_20240816
["timestamp","ask_amount","ask_price","bid_price","bid_amount"]
[1723778435578,0.23612525,2585.4,2584.6,1.93447]
[1723778435579,1.93399,2585.4,2584.6,1.93447]
[1723778435779,1.93423,2585.0,2584.3,0.1286674]
[1723778435983,1.93432,2584.9,2584.3,0.1286674]
[1723778436510,1.93461,2584.5,2584.3,0.1286674]
[1723778436707,2.4344,2584.4,2584.3,0.1286674]
[1723778437008,4.36908,2584.4,2584.3,0.1286674]
[1723778437220,4.6052516,2584.4,2584.3,0.1286674]
[1723778437432,6.5399316,2584.4,2584.3,0.1286674]
[1723778437576,4.6052516,2584.4,2584.3,0.1286674]
[1723778437915,5.27857686,2584.4,2584.3,0.1286674]
[1723778438621,7.52708526,2584.4,2584.3,0.1286674]
[1723778438818,7.76329055,2584.4,2584.3,0.1286674]
[1723778438986,7.52708526,2584.4,2584.3,0.1286674]
[1723778439188,7.76330721,2584.4,2584.3,0.1286674]
[1723778439815,7.76329386,2584.4,2584.3,0.1286674]
[1723778441725,5.04240526,2584.4,2584.3,0.1286674]
[1723778442650,5.27852566,2584.4,2584.3,0.1286674]
[1723778442777,5.27852566,2584.4,2583.0,0.60642676]
[1723778442778,4.4213,2583.8,2583.0,2.54214676]
[1723778443105,1.93529,2583.6,2582.9,2.26]
[1723778443311,1.93529,2583.6,2583.1,35.0]
[1723778443509,4.4213,2583.8,2583.1,35.0]
[1723778443677,2.4861,2583.8,2583.2,1.93557]
[1723778443878,4.42123,2583.8,2583.0,1.9357]
[1723778444079,2.4861,2583.8,2582.9,1.93574]
[1723778444279,2.4861,2583.8,2583.0,35.0]
[1723778444280,3.222,2583.7,2583.0,35.0]
[1723778444515,6.471543,2583.7,2583.0,35.0]
[1723778444734,4.536323,2583.7,2583.0,35.0]
[1723778445037,2.4861,2583.3,2582.1,1.93638]
[1723778445241,1.93565,2583.2,2582.1,1.9364]
[1723778445538,3.478275,2583.1,2582.2,35.0]
[1723778445693,4.97176,2583.1,2582.2,35.0]
[1723778445891,2.4861,2583.1,2582.5,1.93608]
[1723778446222,2.4861,2583.1,2582.4,1.93613]
[1723778446424,2.4861,2583.1,2582.2,36.93632]
[1723778446625,5.7081,2583.1,2582.2,36.93632]
[1723778447138,1.93576,2583.0,2582.2,36.93632]
[1723778447341,2.893713,2583.0,2582.2,36.93632]
[1723778447540,1.93583,2582.9,2582.2,1.93632]
[1723778447745,0.957953,2583.0,2582.3,1.93625]
[1723778447897,2.893693,2583.0,2582.3,1.93625]
[1723778448298,2.893693,2583.0,2582.2,1.93632]
[1723778448299,1.93583,2582.9,2582.2,1.93632]
[1723778448540,3.7747623,2582.9,2582.1,36.9364]
[1723778448699,20.727953,2583.0,2582.4,1.93617]
[1723778449130,22.663683,2583.0,2582.3,1.93625]
[1723778449511,20.727953,2583.0,2582.2,1.9363]
[1723778449714,19.77,2583.0,2582.2,1.9363]
[1723778449920,19.77,2583.0,2582.5,1.9361]
[1723778450112,21.7058,2583.0,2582.2,1.9363]
[1723778450327,19.77,2583.0,2582.2,1.9363]
[1723778450857,19.77,2583.0,2582.3,1.93618]
[1723778451502,19.77,2583.0,2582.5,1.9361]
[1723778452653,19.77,2583.0,2582.4,1.93617]
[1723778452796,2.96961,2582.9,2582.4,1.93617]
[1723778453002,2.96961,2582.9,2582.2,1.93633]
[1723778453235,4.90543,2582.9,2582.2,1.93633]
[1723778453647,1.93589,2582.8,2582.1,1.9364]
[1723778453939,4.29847,2582.7,2581.9,1.93652]
[1723778454299,1.93603,2582.6,2581.8,1.9366]
[1723778454501,1.93603,2582.6,2581.9,1.93654]
[1723778454742,0.429853,2582.5,2581.9,1.93654]
[1723778455543,0.429853,2582.5,2581.8,1.93663]
[1723778456229,2.365963,2582.5,2581.8,1.93663]
[1723778456434,0.2365963,2582.4,2581.8,1.93663]
[1723778456945,0.2365963,2582.4,2581.9,36.93655]
[1723778457107,0.429853,2582.5,2581.9,36.93655]
[1723778457521,0.429853,2582.5,2582.0,1.93642]
[1723778457750,2.2926,2583.0,2582.6,1.93601]
[1723778457935,7.44,2583.1,2582.8,1.93582]
[1723778458133,7.44,2583.1,2582.7,1.93592]
[1723778458644,7.44,2583.1,2581.8,5.15856]
[1723778458645,7.44,2583.1,2583.0,1.93573]
[1723778458847,7.44,2583.1,2583.0,3.87146]
[1723778459163,7.44,2583.6,2583.3,1.9355]
[1723778459464,19.77,2583.8,2583.3,1.9355]
[1723778459620,19.77,2583.8,2583.4,1.93542]
[1723778459822,19.77,2583.8,2583.2,1.93557]
[1723778459823,19.77,2583.8,2583.5,1.93535]
[1723778460020,2.2651,2584.1,2583.2,2.3785]
[1723778460247,2.2651,2584.1,2583.6,1.93524]
[1723778460523,2.2651,2584.1,2583.0,35.0]
[1723778460719,2.2651,2584.1,2583.5,1.93529]
[1723778461369,2.2651,2584.1,2583.6,1.93525]
[1723778461523,4.19972,2584.5,2583.7,1.93519]
[1723778461723,4.19972,2584.5,2583.8,1.93511]
[1723778462169,2.2651,2584.5,2584.2,1.93482]
[1723778462352,4.19944,2584.9,2584.2,1.93482]
[1723778462524,4.19944,2584.9,2584.0,1.93496]
[1723778462525,1.9344,2584.8,2584.0,1.93496]
[1723778462725,1.9344,2584.8,2583.9,1.93501]
[1723778462726,1.93446,2584.7,2583.9,1.93501]
[1723778462964,1.93454,2584.6,2583.7,1.93519]
[1723778463160,2.2651,2584.5,2583.7,1.93519]
[1723778464372,4.19971,2584.5,2583.7,1.93519]
[1723778464870,4.19971,2584.5,2583.8,1.93513]
[1723778465173,4.19971,2584.5,2583.9,1.93505]
[1723778465174,0.76571504,2584.4,2583.9,1.93505]
[1723778465464,2.2651,2584.5,2584.0,1.93498]
[1723778465861,22.0351,2584.5,2583.7,1.9352]
[1723778466033,0.25005404,2584.4,2583.7,1.9352]
[1723778466374,0.25005404,2584.4,2583.8,1.93513]
[1723778466958,0.25005404,2584.4,2583.9,1.93505]
[1723778469288,0.25005404,2584.4,2584.0,1.93497]
[1723778469586,0.25005404,2584.4,2583.9,35.0]
[1723778470475,0.25005404,2584.4,2583.9,36.93505]
[1723778470884,0.25005404,2584.4,2583.6,1.93526]
[1723778471180,0.25005404,2584.4,2583.7,1.9352]
[1723778471181,0.23622115,2584.3,2583.7,1.9352]
[1723778471342,2.44560652,2584.3,2583.7,1.9352]
[1723778471544,0.55,2584.2,2583.5,36.93535]
[1723778471879,1.93497,2584.1,2583.3,1.93548]
[1723778472081,1.93497,2584.1,2583.4,1.93543]
[1723778472082,0.441981,2584.0,2583.4,1.93543]
[1723778472245,0.441981,2584.0,2583.2,4.31407]
[1723778472246,2.3714,2583.9,2583.2,1.93557]
[1723778472445,1.93524,2583.7,2582.9,36.93575]
[1723778472694,0.78605925,2583.6,2582.9,1.93575]
[1723778472896,0.55,2583.6,2583.0,1.93572]
[1723778473259,2.3714,2583.5,2582.8,35.0]
[1723778473442,0.29214,2583.4,2582.8,35.0]
[1723778473891,1.93551,2583.3,2582.8,35.0]
[1723778474188,1.93551,2583.3,2582.6,1.93601]
[1723778474497,1.93551,2583.3,2582.7,35.0]
[1723778474678,0.222765,2583.2,2582.7,35.0]
[1723778474992,0.222765,2583.2,2582.6,1.93601]
[1723778475381,0.222765,2583.2,2582.6,36.93601]
[1723778475696,2.3714,2583.1,2582.5,1.93609]
[1723778476363,2.3714,2583.1,2582.5,36.93609]
[1723778477194,2.3714,2583.1,2582.6,1.93601]
[1723778477503,2.3714,2583.1,2582.5,36.93609]
[1723778477990,2.3714,2583.1,2582.5,35.0]
[1723778478295,1.9359,2582.8,2582.1,1.9364]
[1723778478609,1.93603,2582.6,2581.9,1.93655]
[1723778478752,0.55,2583.0,2581.7,2.0653574]
[1723778478753,2.3345,2582.5,2581.7,2.0653574]
[1723778479092,2.3345,2582.5,2581.9,1.93655]
[1723778479392,4.27061,2582.5,2581.9,1.93655]
[1723778479749,1.93618,2582.4,2581.7,2.0653574]
[1723778479949,0.55,2582.3,2581.7,2.0653574]
[1723778480180,0.55,2582.3,2581.8,1.93656]
[1723778480181,0.482068,2582.3,2581.8,1.93656]
[1723778480404,2.3345,2582.5,2581.8,1.93663]
[1723778480702,2.3345,2582.5,2581.9,1.93655]
[1723778480911,2.761553,2582.5,2582.0,1.93647]
[1723778481100,2.3345,2582.5,2582.0,1.93647]
[1723778481887,2.3345,2582.5,2581.8,1.93662]
[1723778482096,4.27061,2582.5,2581.8,1.93662]
[1723778482286,1.93634,2582.2,2581.7,0.1286674]
[1723778482452,1.93655,2582.0,2581.7,0.1286674]
[1723778482656,1.93655,2581.9,2581.7,0.1286674]
[1723778483103,4.27113,2581.8,2581.7,0.1286674]
[1723778483249,5.441898,2581.8,2581.7,0.1286674]
[1723778483454,3.505268,2581.8,2581.7,0.1286674]
[1723778484265,5.441898,2581.8,2581.7,0.1286674]
[1723778484500,5.044028,2581.8,2581.7,0.1286674]
[1723778484792,7.71489599,2581.8,2581.7,0.1286674]
[1723778485001,9.65152599,2581.8,2581.7,0.1286674]
[1723778485154,3.87386,2581.4,2581.3,0.0025]
[1723778485356,9.97736,2581.4,2581.3,0.0025]
[1723778485851,6.75536,2581.4,2581.3,0.0025]
[1723778486502,2.8815,2581.4,2581.3,0.0025]
[1723778487096,4.81843,2581.4,2581.3,0.0025]
[1723778487296,3.363343,2581.4,2581.3,0.0025]
[1723778487614,4.966708,2581.8,2581.3,0.0025]
[1723778487940,1.9367,2581.7,2581.3,0.0025]
[1723778489739,3.030068,2581.8,2581.3,0.0025]
[1723778489911,2.4594,2582.1,2581.5,1.93684]
[1723778491242,7.44,2582.3,2581.3,0.0025]
[1723778491446,7.44,2582.3,2581.6,1.93678]
[1723778491800,7.44,2582.3,2582.1,1.93635]
[1723778492001,19.77,2582.4,2582.1,1.93635]
[1723778492529,19.77,2582.4,2582.2,1.93627]
[1723778493545,19.77,2582.4,2582.3,1.93625]
[1723778493769,19.77,2582.4,2582.2,1.93632]
[1723778494265,19.77,2582.4,2582.3,1.93625]
[1723778494881,19.77,2582.4,2582.3,3.8725]
[1723778495078,7.44,2582.7,2581.8,2.4556]
[1723778495427,7.44,2582.7,2581.4,1.93688]
[1723778495428,7.44,2582.7,2582.6,1.93603]
[1723778497842,19.77,2583.2,2583.1,1.93565]
[1723778498152,9.811,2583.6,2583.1,1.93565]
[1723778498389,12.203615,2583.6,2583.1,1.93565]
[1723778499837,12.203615,2583.6,2583.2,1.93557]
[1723778500062,9.832615,2583.6,2583.2,1.93557]
[1723778501414,7.44,2583.6,2583.2,1.93557]
[1723778501719,31.57746,2583.9,2583.2,1.93557]
[1723778501933,11.80746,2583.9,2583.2,1.93557]
[1723778502424,9.8724,2583.9,2583.2,1.93557]
[1723778502628,9.8724,2583.9,2583.5,1.9353]
[1723778502629,7.44,2583.9,2583.5,1.9353]
[1723778502829,7.44,2583.9,2583.4,1.93542]
[1723778504309,7.44,2583.9,2583.2,1.93557]
[1723778504510,7.44,2583.9,2582.9,2.4819]
[1723778504511,2.67919,2583.8,2583.1,1.93565]
[1723778504825,0.744,2583.8,2583.1,1.93565]
[1723778505038,7.44,2583.9,2583.4,1.93537]
[1723778505540,7.44,2583.9,2583.1,1.93565]
[1723778505715,1.93514,2583.8,2583.1,1.93565]
[1723778506032,0.937514,2583.7,2583.2,1.93558]
[1723778506205,0.937514,2583.7,2583.3,1.9355]
[1723778506731,0.937514,2583.7,2583.1,1.93563]
[1723778507110,0.937514,2583.7,2583.2,1.93557]
[1723778507908,0.937514,2583.7,2583.1,1.93565]
[1723778508102,0.2872644,2583.6,2583.1,1.93565]
[1723778508645,0.2872644,2583.6,2583.2,1.93558]
[1723778508932,0.2872644,2583.6,2583.0,1.93569]
[1723778509096,0.2872644,2583.6,2583.1,1.93564]
[1723778509943,0.2872644,2583.6,2583.2,1.93558]
[1723778510099,7.44,2583.9,2583.3,1.9355]
[1723778510436,7.44,2583.9,2582.9,2.4819]
[1723778510437,7.44,2583.9,2583.6,1.93527]
[1723778512855,9.7889,2583.9,2583.4,1.93543]
[1723778513060,0.744,2583.8,2583.4,1.93543]
[1723778515320,0.744,2583.8,2583.5,1.93535]
[1723778516054,7.44,2583.9,2583.7,1.93519]
[1723778516865,7.44,2583.9,2583.8,1.93513]
[1723778517019,19.77,2584.1,2583.8,1.93513]
[1723778517760,19.77,2584.1,2583.9,1.93504]
[1723778517931,7.44,2584.3,2584.0,1.93498]
[1723778518117,7.44,2584.3,2583.7,1.93517]
[1723778518318,7.44,2584.3,2584.2,1.93483]
[1723778518543,7.44,2584.3,2583.9,1.93504]
[1723778519030,7.44,2584.3,2584.0,1.93498]
[1723778520376,8.184,2584.3,2583.5,4.27423]
[1723778520586,8.184,2584.3,2583.0,1.93566]
[1723778520587,2.4358,2584.2,2583.6,1.93528]
[1723778520748,3.2542,2584.2,2583.6,1.93528]
[1723778521272,3.2542,2584.2,2583.7,1.93519]
[1723778521434,3.2542,2584.2,2583.6,1.93528]
[1723778521631,3.2542,2584.2,2583.7,1.9352]
[1723778521836,1.06942,2584.1,2583.7,1.9352]
[1723778522078,7.44,2584.3,2584.1,1.93483]
[1723778522580,1.93459,2584.6,2583.9,1.93504]
[1723778522765,3.195,2584.5,2584.0,1.93498]
[1723778522965,3.195,2584.5,2584.1,1.93483]
[1723778523136,3.195,2584.5,2584.0,1.93498]
[1723778523775,2.2965,2584.4,2584.0,1.93498]
[1723778524773,2.2965,2584.4,2584.2,1.9348]
[1723778525271,2.2965,2584.4,2584.0,1.93498]
[1723778525480,2.2965,2584.4,2584.1,1.9349]
[1723778525786,19.77,2584.6,2584.1,1.9349]
[1723778525943,19.77,2584.6,2584.2,1.93482]
[1723778526648,19.77,2584.6,2584.1,1.9349]
[1723778528239,0.23609367,2584.5,2584.0,1.93498]
[1723778528575,1.130888,2584.6,2584.1,1.93489]
[1723778528784,1.09321856,2584.5,2584.1,1.93489]
[1723778528995,2.72702976,2584.4,2583.4,2.2675]
[1723778529139,2.72702976,2584.4,2583.7,1.9352]
[1723778529140,2.17093976,2584.3,2583.7,1.9352]
[1723778529341,0.23612976,2584.2,2583.6,1.93528]
[1723778531243,0.23612976,2584.2,2583.7,1.9352]
[1723778531587,0.8570888,2584.5,2584.0,1.93498]
[1723778531878,0.8570888,2584.5,2583.4,2.2675]
[1723778531879,0.23624488,2584.4,2583.7,1.93516]
[1723778532083,0.23624488,2584.3,2583.7,1.93516]
[1723778532285,0.19879768,2584.4,2583.8,1.93512]
[1723778532286,0.23624488,2584.2,2583.8,1.93512]
[1723778532488,0.19879768,2584.4,2583.8,1.93512]
[1723778532785,0.23622246,2584.3,2583.8,1.93512]
[1723778532994,0.23622246,2584.2,2583.8,1.93512]
[1723778533287,0.19879768,2584.4,2583.8,1.93512]
[1723778533490,0.23622372,2584.3,2584.0,1.93497]
[1723778533659,0.23622372,2584.2,2583.8,1.93513]
[1723778533863,0.23622161,2584.1,2583.6,1.93525]
[1723778534077,1.93476,2584.3,2583.6,1.93525]
[1723778534247,0.23625052,2584.2,2583.6,1.93525]
[1723778534449,2.46301988,2584.3,2583.6,1.93527]
[1723778534450,0.23625052,2584.1,2583.6,1.93527]
[1723778534747,7.44,2584.4,2583.4,2.2675]
[1723778534980,0.23624231,2584.3,2584.0,1.93492]
[1723778535183,0.2362778,2584.2,2584.0,1.93492]
[1723778535363,7.44,2584.4,2584.0,1.93492]
[1723778535568,0.98023375,2584.3,2584.0,1.93492]
[1723778535786,0.23624707,2584.2,2584.0,1.93492]
[1723778536085,7.44,2584.4,2584.0,1.93492]
[1723778536295,0.23623947,2584.3,2584.0,1.93492]
[1723778536447,0.23623947,2584.2,2583.7,1.93519]
[1723778536647,0.76762395,2584.3,2583.7,1.93519]
[1723778536879,1.2504788,2584.2,2583.7,1.93519]
[1723778537077,0.2362484,2584.1,2583.7,1.93519]
[1723778537299,0.2362484,2584.1,2583.6,1.93526]
[1723778537592,0.2362484,2584.1,2583.7,1.93519]
[1723778537774,0.78068228,2584.1,2583.7,1.93519]
[1723778537954,0.2362484,2584.0,2583.7,1.93519]
[1723778538155,0.2362484,2584.0,2583.6,1.93526]
[1723778538356,0.2362484,2584.0,2583.7,1.9352]
[1723778538951,0.2362484,2584.0,2583.6,1.93526]
[1723778539377,0.54443388,2584.1,2583.6,1.93526]
[1723778539583,0.23626521,2584.0,2583.6,1.93526]
[1723778539972,0.23626521,2584.0,2583.7,1.9352]
[1723778540280,0.23626521,2584.0,2583.8,1.93512]
[1723778540450,1.0142304,2584.2,2583.8,1.93512]
[1723778540649,0.23626038,2584.1,2583.8,1.93512]
[1723778540877,0.23624869,2584.0,2583.9,1.93503]
[1723778541262,7.44,2584.4,2584.0,1.93497]
[1723778541578,0.23629211,2584.3,2584.0,1.93497]
[1723778541770,0.23629211,2584.2,2584.0,1.93497]
[1723778542102,7.44,2584.4,2584.0,1.93497]
[1723778542103,0.23629211,2584.1,2584.0,1.93497]
[1723778543271,7.44,2584.4,2584.0,1.93497]
[1723778543472,0.23626905,2584.3,2584.2,1.93482]
[1723778544296,7.44,2584.4,2584.3,1.93475]
[1723778544513,15.84629719,2585.0,2584.3,1.9347]
[1723778544514,11.10629719,2585.0,2584.3,1.9347]
[1723778544803,31.95,2585.3,2584.3,1.9347]
[1723778544804,0.23617485,2584.9,2584.4,1.93465]
[1723778544989,0.23617485,2584.9,2584.3,2.4254]
[1723778544990,0.23617485,2584.8,2584.3,1.93475]
[1723778545175,0.23617485,2584.7,2584.3,1.93475]
[1723778545370,0.23617485,2584.6,2584.4,1.93466]
[1723778545696,0.23617485,2584.5,2584.4,1.93466]
[1723778545871,0.23617485,2584.5,2584.2,1.93479]
[1723778546069,0.23617485,2584.5,2584.1,1.93489]
[1723778546070,2.306,2584.9,2584.3,1.93473]
[1723778546272,1.02686647,2584.8,2584.2,1.93482]
[1723778546570,0.23620775,2584.7,2584.5,1.9346]
[1723778546751,0.23620775,2584.6,2584.5,1.9346]
[1723778547190,0.80093972,2585.0,2584.5,1.9346]
[1723778547191,0.23620775,2584.9,2584.5,1.9346]
[1723778547402,3.66629719,2585.1,2584.6,1.93447]
[1723778547403,0.23627171,2584.8,2584.6,1.93447]
[1723778547568,0.23627171,2584.7,2584.6,1.93447]
[1723778547775,3.4359,2585.1,2584.7,1.93445]
[1723778547973,0.23622555,2585.0,2584.7,1.93445]
[1723778548270,0.23622555,2584.9,2584.7,1.93445]
[1723778548469,0.23622555,2584.8,2584.7,1.93445]
[1723778549912,0.23605558,2584.8,2584.7,1.93445]
[1723778550091,13.04036551,2585.4,2584.8,1.93437]
[1723778550255,3.74222465,2585.3,2584.6,1.93453]
[1723778550455,0.2360181,2585.2,2584.6,1.93453]
[1723778550654,0.2360181,2585.1,2584.6,1.93453]
[1723778550892,0.2360181,2585.0,2584.4,1.93466]
[1723778551087,0.2360181,2584.9,2584.5,1.93459]
[1723778551308,0.50349991,2584.9,2584.5,1.93459]
[1723778551493,0.2360181,2584.8,2584.5,1.93459]
[1723778552104,0.2360181,2584.8,2584.6,1.93452]
[1723778552557,0.2360181,2584.8,2584.7,1.93446]
[1723778553198,2.4207,2585.3,2584.7,1.93446]
[1723778553199,0.2360181,2585.2,2584.7,1.93446]
[1723778553463,0.2360181,2585.1,2584.5,1.93459]
[1723778553678,0.2360181,2585.0,2584.5,1.93459]
[1723778554307,0.2360181,2585.0,2584.1,2.4948]
[1723778554308,0.2360181,2585.0,2584.7,1.93445]
[1723778554801,7.44,2585.4,2584.9,1.93431]
[1723778555013,14.11381,2585.6,2584.9,1.93431]
[1723778555014,5.81363498,2585.3,2584.9,1.93431]
[1723778555212,5.81363498,2585.3,2584.8,1.93437]
[1723778555213,0.23619843,2585.2,2584.8,1.93437]
[1723778555513,0.23619843,2585.2,2584.9,1.9343]
[1723778556007,0.23619843,2585.2,2585.1,1.93416]
[1723778556181,9.7364,2585.6,2585.1,1.93416]
[1723778556380,0.23630552,2585.5,2585.1,1.93416]
[1723778556709,0.23630552,2585.4,2585.1,1.93416]
[1723778557370,0.23630552,2585.4,2584.9,1.9343]
[1723778558298,0.23630552,2585.4,2585.2,1.93405]
[1723778558517,14.11356,2585.9,2585.3,3.86802]
[1723778558518,2.3298,2585.9,2585.3,3.86802]
[1723778558682,27.21,2586.1,2585.5,1.93385]
[1723778558683,0.23633541,2585.8,2585.5,1.93385]
[1723778558879,0.23633541,2585.7,2585.5,1.93385]
[1723778559126,0.23633541,2585.6,2585.3,1.93401]
[1723778559421,2.914337,2586.0,2585.3,1.93401]
[1723778559422,2.3298,2585.8,2585.3,1.93401]
[1723778560023,0.23639683,2585.7,2585.3,1.93401]
[1723778560229,1.2287747,2585.9,2585.4,1.93392]
[1723778560518,0.23644545,2585.8,2585.4,1.93392]
[1723778560824,0.23644545,2585.7,2585.3,36.93401]
[1723778561579,0.23644545,2585.7,2585.3,1.93401]
[1723778561987,0.23644545,2585.7,2585.4,1.93392]
[1723778562208,1.2287747,2585.9,2585.4,1.93392]
[1723778562409,0.23654748,2585.8,2585.3,1.93401]
[1723778562611,0.23654748,2585.7,2585.3,1.93401]
[1723778562824,1.2287747,2585.9,2585.3,1.93401]
[1723778563109,0.55280053,2585.8,2585.3,1.93401]
[1723778563288,0.23657506,2585.7,2585.3,1.93401]
[1723778563826,0.31622547,2585.8,2585.3,1.93401]
[1723778564037,0.2366323,2585.7,2585.3,1.93401]
[1723778564327,0.23661103,2585.6,2585.1,1.93415]
[1723778564513,0.23661103,2585.5,2585.1,1.93415]
[1723778565537,0.29427365,2585.6,2585.1,1.93415]
[1723778565748,0.23676692,2585.5,2585.1,1.93415]
[1723778565898,0.23680317,2585.4,2585.1,1.93415]
[1723778566100,0.29427365,2585.6,2585.1,1.93415]
[1723778566295,0.23678337,2585.5,2585.1,1.93415]
[1723778566599,0.29427365,2585.6,2585.1,1.93415]
[1723778566797,0.23685635,2585.5,2585.1,1.93415]
[1723778567042,0.29427365,2585.6,2585.1,1.93415]
[1723778567240,0.23684009,2585.5,2585.1,1.93415]
[1723778567537,0.29427365,2585.6,2585.2,1.93407]
[1723778567715,2.3899,2585.7,2585.2,1.93407]
[1723778567919,0.23688058,2585.6,2585.2,1.93407]
[1723778568221,0.23683533,2585.5,2585.2,1.93408]
[1723778568439,2.3899,2585.7,2585.1,1.93415]
[1723778568775,0.23685114,2585.6,2585.1,1.93415]
[1723778568917,0.23685114,2585.5,2585.1,1.93415]
[1723778569116,4.91045702,2585.7,2585.1,1.93415]
[1723778569325,0.23686355,2585.6,2585.1,1.93415]
[1723778569515,0.23686355,2585.5,2585.1,1.93415]
[1723778569825,0.23686355,2585.4,2585.1,1.93415]
[1723778570044,0.5463546,2585.6,2585.1,1.93415]
[1723778570200,0.23666951,2585.5,2585.1,1.93415]
[1723778570545,0.23666951,2585.4,2585.1,1.93415]
[1723778570709,0.5463546,2585.6,2585.1,1.93415]
[1723778571039,0.2366765,2585.5,2585.1,1.93415]
[1723778571246,0.2366765,2585.4,2585.1,1.93415]
[1723778571421,0.5463546,2585.6,2585.1,1.93415]
[1723778571628,0.23665672,2585.5,2585.0,1.93423]
[1723778571822,0.5463546,2585.6,2585.0,1.93423]
[1723778572025,0.23664054,2585.5,2585.0,1.93423]
[1723778572244,0.5463546,2585.6,2585.0,1.93423]
[1723778572405,0.23665585,2585.5,2585.0,1.93423]
[1723778572603,0.23665585,2585.5,2585.1,1.93416]
[1723778573024,0.23665585,2585.5,2585.1,36.93416]
[1723778573539,0.23665585,2585.4,2585.1,36.93416]
[1723778573725,0.23665585,2585.3,2585.1,36.93416]
[1723778573916,0.2976747,2585.6,2585.1,36.93416]
[1723778574127,0.23665452,2585.5,2585.1,36.93416]
[1723778574444,0.23665452,2585.4,2585.1,36.93416]
[1723778574618,0.23665452,2585.3,2585.1,36.93416]
[1723778574824,2.97674702,2585.7,2585.1,36.93416]
[1723778575020,0.23669323,2585.6,2585.1,36.93416]
[1723778575221,0.23669323,2585.5,2585.1,35.0]
[1723778575424,0.23674038,2585.4,2585.3,1.93393]
[1723778576240,3.91246883,2585.9,2585.3,1.93393]
[1723778576496,0.23678278,2585.8,2585.3,1.93393]
[1723778576693,0.23678278,2585.7,2585.3,1.93393]
[1723778576990,0.23678278,2585.6,2585.1,36.9341]
[1723778577146,0.23678278,2585.5,2585.1,36.9341]
[1723778577355,4.65707399,2585.8,2585.1,36.9341]
[1723778577356,0.23678278,2585.4,2585.1,36.9341]
[1723778577600,0.23678278,2585.3,2585.1,36.9341]
[1723778577890,0.23678278,2585.2,2585.1,36.9341]
[1723778578191,0.23678278,2585.2,2584.7,1.93443]
[1723778578393,0.23678278,2585.1,2584.7,1.93443]
[1723778578600,0.23678278,2585.0,2584.9,3.86862]
[1723778578751,2.4001,2585.5,2585.1,1.9341]
[1723778578950,0.23678088,2585.4,2585.2,1.93404]
[1723778579197,0.23678088,2585.3,2585.2,1.93404]
[1723778579347,0.23678088,2585.7,2585.2,1.93404]
[1723778579550,6.07578605,2585.8,2585.4,1.93393]
[1723778579551,0.23678088,2585.6,2585.4,1.93393]
[1723778579756,7.44,2586.1,2585.4,1.93393]
[1723778579757,0.23678088,2585.5,2585.4,1.93393]
[1723778580062,3.67568605,2585.9,2585.6,1.93378]
[1723778580411,0.23684403,2585.8,2585.7,1.93371]
[1723778580595,0.23684403,2585.8,2585.3,1.93399]
[1723778580766,0.23684403,2585.7,2585.2,1.93405]
[1723778580966,0.2170454,2585.8,2585.3,1.93399]
[1723778580967,0.23684403,2585.6,2585.3,1.93399]
[1723778581165,0.23684403,2585.5,2585.4,1.93393]
[1723778581904,0.23684403,2585.5,2585.4,6.14806]
[1723778582072,3.67568605,2586.1,2585.6,1.93375]
[1723778582261,0.2369089,2586.0,2585.4,4.21413]
[1723778582464,0.2369089,2585.9,2585.5,1.93386]
[1723778582676,0.2369089,2585.8,2585.5,1.93386]
[1723778582871,0.23689471,2585.7,2585.3,1.93399]
[1723778583072,0.23689471,2585.6,2585.2,4.31965]
[1723778583299,0.23693645,2585.5,2585.2,1.93405]
[1723778583511,0.23693645,2585.4,2585.2,1.93405]
[1723778583689,0.23693645,2585.3,2585.2,1.93405]
[1723778583885,0.23693645,2585.7,2585.2,1.93405]
[1723778584085,0.23693645,2585.6,2585.0,1.93422]
[1723778584291,0.23693645,2585.5,2585.0,1.93422]
[1723778584490,0.23693645,2585.4,2585.0,1.93422]
[1723778584677,0.23693645,2585.3,2584.9,1.93428]
[1723778584983,0.23693645,2585.2,2584.8,1.93436]
[1723778585190,0.23693645,2585.1,2584.8,1.93436]
[1723778585418,0.23693645,2585.0,2584.8,1.93436]
[1723778585600,0.23693645,2584.9,2584.8,1.93436]
[1723778585780,0.23693645,2585.3,2584.8,1.93436]
[1723778585979,0.23693645,2585.2,2584.8,1.93436]
[1723778586217,0.23693645,2585.1,2584.8,1.93436]
[1723778586421,4.4804098,2585.4,2584.8,1.93436]
[1723778586422,0.23693645,2585.0,2584.8,1.93436]
[1723778586579,0.80236089,2585.4,2584.8,1.93436]
[1723778586778,0.23707832,2585.3,2584.8,1.93436]
[1723778587108,0.23707832,2585.3,2584.6,1.93452]
[1723778587109,3.91658808,2585.2,2584.6,1.93452]
[1723778587308,3.91658808,2585.2,2584.4,1.93467]
[1723778587309,0.23706178,2585.1,2584.4,1.93467]
[1723778587622,1.93401,2585.3,2584.4,1.93467]
[1723778587623,8.21141808,2585.0,2584.4,1.93467]
[1723778587827,1.05820359,2584.9,2584.4,1.93467]
[1723778587994,7.9743563,2585.0,2584.4,1.93467]
[1723778587995,0.23706178,2584.8,2584.4,1.93467]
[1723778588184,0.23706178,2584.7,2584.4,1.93467]
[1723778588386,0.23706178,2584.6,2584.4,1.93467]
[1723778588720,0.23706178,2584.5,2584.4,1.93467]
[1723778589081,3.15802463,2585.0,2584.4,1.93467]
[1723778589281,0.23708491,2584.9,2584.4,1.93467]
[1723778589490,0.23708491,2584.8,2584.4,1.93467]
[1723778589684,0.23708491,2584.7,2584.4,1.93467]
[1723778589885,0.23708491,2584.6,2584.5,36.93461]
[1723778590079,0.23708491,2584.9,2584.5,36.93461]
[1723778590293,2.3606,2585.0,2584.5,36.93461]
[1723778590294,0.23708491,2584.8,2584.5,36.93461]
[1723778590497,0.23708491,2584.7,2584.5,36.93461]